bitfinex-derivatives/quotes_BTCF0:USTF0_20250313
["timestamp","ask_amount","ask_price","bid_price","bid_amount"]
[1741889377180,0.03107,80438.0,80429.0,0.00018643]
[1741889377487,0.1243665,80430.0,80429.0,0.00018643]
[1741889378383,0.3205665,80430.0,80429.0,0.00018643]
[1741889378586,0.1243742,80425.0,80424.0,8.052e-05]
[1741889378780,0.1244113,80401.0,80398.0,0.1262806]
[1741889378982,0.41381322,80430.0,80400.0,0.14]
[1741889379182,0.1865843,80416.0,80415.0,0.1243897]
[1741889379391,0.0621947,80416.0,80414.0,0.188]
[1741889379592,0.1243897,80415.0,80414.0,0.3123901]
[1741889379894,0.3205897,80415.0,80414.0,0.3123901]
[1741889380193,0.3205897,80415.0,80403.0,0.0622035]
[1741889380194,0.1244067,80405.0,80404.0,0.1244038]
[1741889380383,0.1244067,80405.0,80404.0,0.13656158]
[1741889380700,0.0621973,80412.0,80411.0,0.1243959]
[1741889380886,0.283188,80414.0,80413.0,0.1243912]
[1741889381286,0.283188,80414.0,80413.0,0.01207271]
[1741889381487,0.1243928,80413.0,80412.0,0.2200937]
[1741889381686,0.2182928,80413.0,80412.0,0.12213068]
[1741889381890,0.3120928,80413.0,80412.0,0.0143608]
[1741889382886,0.1877,80413.0,80403.0,0.1244077]
[1741889383086,0.1877,80413.0,80412.0,0.1243943]
[1741889383087,0.3742933,80413.0,80412.0,0.1243943]
[1741889383293,0.3742933,80413.0,80412.0,0.13653799]
[1741889384007,0.3742933,80413.0,80412.0,0.15062153]
[1741889384792,0.03108,80414.0,80412.0,0.15062153]
[1741889384998,0.1554712,80414.0,80413.0,0.13652581]
[1741889385297,0.1554712,80414.0,80413.0,0.22972581]
[1741889385493,0.03108,80414.0,80413.0,0.24380935]
[1741889385993,0.1554712,80414.0,80413.0,0.24380935]
[1741889386794,0.1554712,80414.0,80413.0,0.02621655]
[1741889387001,0.1554712,80414.0,80413.0,0.0262298]
[1741889388000,0.1554712,80414.0,80413.0,0.1506226]
[1741889388498,0.1554712,80414.0,80413.0,0.0262298]
[1741889388903,0.1554712,80414.0,80413.0,0.04914409]
[1741889389092,0.0622015,80407.0,80406.0,0.124399]
[1741889389294,0.0622015,80407.0,80406.0,0.07456178]
[1741889390295,0.0622002,80409.0,80408.0,0.1244005]
[1741889391095,0.0622002,80409.0,80407.0,0.0936]
[1741889391096,0.1003,80413.0,80412.0,0.1243943]
[1741889391293,0.2246928,80413.0,80412.0,0.1243943]
[1741889391603,0.03108,80414.0,80413.0,0.1243928]
[1741889391793,0.03108,80414.0,80413.0,0.2179928]
[1741889392099,0.12456387,80423.0,80422.0,0.1243789]
[1741889392299,0.1243804,80421.0,80420.0,0.2801691]
[1741889392496,0.1243804,80421.0,80420.0,0.0936]
[1741889392687,0.0621939,80417.0,80408.0,0.1565995]
[1741889392891,0.1,80416.0,80414.0,0.1243897]
[1741889393098,0.2243884,80416.0,80415.0,0.2179897]
[1741889393494,0.2243884,80416.0,80415.0,0.0936]
[1741889393694,0.2243884,80416.0,80415.0,0.2179897]
[1741889394397,0.1,80416.0,80408.0,0.0944]
[1741889394604,0.1243974,80410.0,80409.0,0.0952]
[1741889394800,0.0621966,80414.0,80413.0,0.1243912]
[1741889395102,0.0929,80415.0,80414.0,0.1243912]
[1741889395304,0.15916,80441.0,80422.0,0.1243789]
[1741889395505,0.1874,80432.0,80431.0,0.1243649]
[1741889395695,0.15916,80455.0,80434.0,0.1243603]
[1741889395891,0.0621561,80466.0,80443.0,0.1243464]
[1741889396203,0.062159,80462.0,80447.0,0.1243402]
[1741889396402,0.0963,80458.0,80447.0,0.3435002]
[1741889396604,0.0621537,80469.0,80452.0,0.1243325]
[1741889396802,0.1932,80467.0,80452.0,0.322166]
[1741889397106,0.1932,80467.0,80458.0,0.1243232]
[1741889397597,0.1243387,80448.0,80439.0,0.00018657]
[1741889397791,0.5413822,80470.0,80439.0,0.00018657]
[1741889397792,0.0621634,80456.0,80440.0,0.1952]
[1741889398094,0.2206278,80455.0,80451.0,0.0621668]
[1741889398298,0.1243309,80453.0,80452.0,0.2232321]
[1741889398492,0.0963,80455.0,80452.0,0.1610655]
[1741889398692,0.1243495,80441.0,80440.0,0.220651]
[1741889398896,0.1243495,80441.0,80440.0,0.418651]
[1741889399197,0.1932,80443.0,80442.0,0.1243479]
[1741889399395,0.0963,80443.0,80442.0,0.1243479]
[1741889399597,0.0621639,80455.0,80440.0,0.2943]
[1741889399799,0.1865164,80446.0,80445.0,0.1243406]
[1741889400002,0.1896,80447.0,80445.0,0.1243406]
[1741889400195,0.0931,80447.0,80446.0,0.1243417]
[1741889400401,0.2174402,80447.0,80446.0,0.3173417]
[1741889400594,0.0931,80447.0,80419.0,0.0621915]
[1741889400798,0.124351,80440.0,80432.0,0.2213011]
[1741889401003,0.0931,80447.0,80446.0,0.1243417]
[1741889401204,0.18667985,80456.0,80455.0,0.1243278]
[1741889401407,0.18667985,80456.0,80455.0,0.01204833]
[1741889402004,0.18667985,80456.0,80455.0,0.02606212]
[1741889402401,0.06234955,80456.0,80439.0,0.00018657]
[1741889402601,0.1865121,80448.0,80447.0,0.1243367]
[1741889402799,0.0621694,80448.0,80447.0,0.1243367]
[1741889403299,0.1243387,80448.0,80447.0,0.1854]
[1741889403700,0.1243464,80443.0,80439.0,0.00018657]
[1741889403904,0.124351,80440.0,80439.0,0.00018657]
[1741889407408,0.124351,80440.0,80439.0,7e-08]
[1741889407608,0.124351,80440.0,80424.0,0.46549665]
[1741889407609,0.16749906,80440.0,80424.0,0.36819665]
[1741889407809,0.1243742,80425.0,80424.0,0.49256865]
[1741889408107,0.1243758,80424.0,80423.0,0.12624243]
[1741889408312,0.2257758,80424.0,80423.0,0.00186513]
[1741889408512,0.2257758,80424.0,80423.0,0.12624243]
[1741889409208,0.2257758,80424.0,80423.0,0.00186513]
[1741889411815,0.2257758,80424.0,80418.0,0.124385]
[1741889411816,0.1014,80424.0,80418.0,0.124385]
[1741889412014,0.1233835,80419.0,80418.0,0.124385]
[1741889412314,0.1243866,80417.0,80416.0,0.3099864]
[1741889412515,0.1243866,80417.0,80416.0,0.1856]
[1741889412813,0.1243881,80416.0,80415.0,0.00018645]
[1741889413017,0.2242881,80416.0,80415.0,0.00018645]
[1741889414109,0.2242881,80416.0,80415.0,0.00318645]
[1741889414421,0.2242881,80416.0,80415.0,0.01541818]
[1741889414713,0.2222881,80416.0,80415.0,0.02956306]
[1741889414913,0.23984826,80416.0,80415.0,0.02956306]
[1741889415509,0.23984826,80416.0,80415.0,0.03256306]
[1741889415908,0.23984826,80416.0,80415.0,0.01841818]
[1741889416716,0.23984826,80416.0,80415.0,0.03262738]
[1741889416920,0.0999,80416.0,80415.0,0.15701708]
[1741889417118,0.0999,80416.0,80415.0,0.17688167]
[1741889417320,0.07930009,80424.0,80422.0,0.1243773]
[1741889417519,0.1865654,80424.0,80423.0,0.34351823]
[1741889418117,0.1865654,80424.0,80423.0,0.21914093]
[1741889418620,0.1865654,80424.0,80423.0,0.12004093]
[1741889418812,0.1865654,80424.0,80423.0,0.02644093]
[1741889419016,0.20406302,80424.0,80423.0,0.0142092]
[1741889419521,0.1243881,80416.0,80415.0,0.00318645]
[1741889419717,0.1233881,80416.0,80415.0,0.0124376]
[1741889419918,0.1233881,80416.0,80415.0,0.1368273]
[1741889420518,0.1223881,80416.0,80415.0,0.02655918]
[1741889421024,0.1223881,80416.0,80415.0,0.15389859]
[1741889421222,0.0621855,80428.0,80420.0,0.0621906]
[1741889421414,0.1243804,80422.0,80421.0,0.33627976]
[1741889421718,0.1243804,80422.0,80421.0,0.21190086]
[1741889421924,0.2215804,80422.0,80421.0,0.22602244]
[1741889422313,0.2215804,80422.0,80421.0,0.35040284]
[1741889422314,0.0972,80422.0,80421.0,0.35040284]
[1741889422515,0.186558,80428.0,80427.0,0.1243657]
[1741889422716,0.186558,80428.0,80427.0,0.01220086]
[1741889422916,0.186558,80428.0,80427.0,0.02632244]
[1741889423320,0.186558,80428.0,80427.0,0.15069354]
[1741889423522,0.186558,80428.0,80427.0,0.35039354]
[1741889424527,0.186558,80428.0,80427.0,0.22602244]
[1741889424924,0.186558,80428.0,80427.0,0.35039354]
[1741889425232,0.188558,80428.0,80427.0,0.35039354]
[1741889425619,0.190558,80428.0,80427.0,0.22602244]
[1741889425814,0.190558,80428.0,80427.0,0.35039354]
[1741889426127,0.0661848,80428.0,80427.0,0.35039354]
[1741889426316,0.0661848,80428.0,80427.0,0.37026627]
[1741889427025,0.00116,80454.0,80427.0,0.30589517]
[1741889427326,0.0978,80451.0,80450.0,0.1243356]
[1741889427629,0.124334,80451.0,80450.0,0.01220086]
[1741889427831,0.124334,80451.0,80450.0,0.02632244]
[1741889428025,0.222134,80451.0,80450.0,0.17068647]
[1741889428216,0.222134,80451.0,80450.0,0.17057659]
[1741889428618,0.222134,80451.0,80450.0,0.19352131]
[1741889428827,0.222134,80451.0,80450.0,0.06918571]
[1741889429130,0.225134,80451.0,80450.0,0.02632244]
[1741889429530,0.225134,80451.0,80450.0,4e-08]
[1741889429830,0.42825715,80451.0,80450.0,4e-08]
[1741889430131,0.387134,80451.0,80450.0,4e-08]
[1741889430328,0.1243371,80449.0,80448.0,0.1243375]
[1741889430529,0.1243402,80447.0,80442.0,0.00018645]
[1741889430829,0.0621723,80445.0,80442.0,0.00018645]
[1741889431032,0.1243464,80443.0,80442.0,0.12453435]
[1741889431533,0.1243464,80443.0,80442.0,0.00018645]
[1741889432118,0.1243464,80443.0,80442.0,0.12453435]
[1741889432324,0.1253464,80443.0,80442.0,0.00018645]
[1741889432519,0.1253464,80443.0,80442.0,0.12453435]
[1741889433527,0.1253464,80443.0,80442.0,0.00018645]
[1741889433727,0.2215464,80443.0,80442.0,0.12453435]
[1741889434031,0.1253464,80443.0,80442.0,0.12453435]
[1741889434431,0.001,80443.0,80442.0,0.12453435]
[1741889434823,0.002,80443.0,80442.0,0.10235985]
[1741889435029,0.003,80443.0,80442.0,0.22670775]
[1741889435430,0.001,80443.0,80442.0,0.22670775]
[1741889435631,0.002,80443.0,80442.0,0.22670775]
[1741889436228,0.002,80443.0,80442.0,0.24287724]
[1741889436632,0.1263464,80443.0,80442.0,0.04018645]
[1741889436843,0.1263464,80443.0,80442.0,0.00018645]
[1741889437132,0.002,80443.0,80442.0,0.19453435]
[1741889437337,0.002,80443.0,80442.0,0.12453435]
[1741889437537,0.1946,80458.0,80442.0,0.12453435]
[1741889437538,0.1243287,80457.0,80456.0,0.1243247]
[1741889437740,0.1865044,80452.0,80451.0,0.1243284]
[1741889437925,0.0621723,80445.0,80442.0,0.00118645]
[1741889438131,0.1865187,80445.0,80444.0,0.1243448]
[1741889438327,0.1243446,80445.0,80444.0,0.03]
[1741889438725,0.1243446,80445.0,80444.0,0.1543448]
[1741889438928,0.1008,80451.0,80450.0,0.1243356]
[1741889439132,0.225134,80451.0,80450.0,0.1243356]
[1741889439633,0.00018645,80459.0,80458.0,0.1243232]
[1741889439930,0.341854,80498.0,80458.0,0.1243232]
[1741889439931,0.15892,80488.0,80467.0,0.1243093]
[1741889440135,0.0621336,80495.0,80471.0,0.1243031]
[1741889440326,0.25956645,80498.0,80480.0,0.1242892]
[1741889440327,0.0621386,80488.0,80480.0,0.1242892]
[1741889440526,0.34675843,80481.0,80480.0,0.1242892]
[1741889440738,0.22247073,80481.0,80480.0,0.1842892]
[1741889440925,0.22247073,80481.0,80480.0,0.1242892]
[1741889441127,0.22247073,80481.0,80480.0,0.3742892]
[1741889441528,0.28461033,80487.0,80486.0,0.12428]
[1741889441729,0.40889373,80487.0,80486.0,0.12428]
[1741889442136,0.1242815,80485.0,80482.0,0.0621425]
[1741889442437,0.22247073,80487.0,80483.0,0.01402554]
[1741889442739,0.124283,80484.0,80483.0,0.13830554]
[1741889442941,0.124283,80484.0,80483.0,0.12428]
[1741889443137,0.22247073,80487.0,80486.0,0.12428]
[1741889443435,0.22247073,80487.0,80486.0,0.15065902]
[1741889443634,0.22247073,80487.0,80486.0,0.19065902]
[1741889443836,0.22247073,80487.0,80486.0,0.28325902]
[1741889444244,0.22247073,80487.0,80486.0,0.43325902]
[1741889444543,0.29422883,80501.0,80495.0,0.1242661]
[1741889444731,0.1570294,80500.0,80495.0,0.13643805]
[1741889444931,0.1570294,80500.0,80495.0,0.29531805]
[1741889444932,0.0621294,80500.0,80495.0,0.29531805]
[1741889445126,0.29422883,80501.0,80495.0,0.35531805]
[1741889445331,0.41848633,80501.0,80495.0,0.30952512]
[1741889445634,0.29422883,80501.0,80495.0,0.54052512]
[1741889446038,0.00018645,80504.0,80497.0,0.0621313]
[1741889446339,0.28673,80527.0,80526.0,0.1242182]
[1741889446547,0.1004,80527.0,80526.0,0.1242182]
[1741889446840,0.2246167,80527.0,80526.0,0.1242182]
[1741889447231,0.1004,80527.0,80525.0,0.1994]
[1741889447432,0.124229,80519.0,80518.0,0.01673074]
[1741889447632,0.124229,80519.0,80518.0,0.15773074]
[1741889447931,0.124229,80519.0,80518.0,0.23958633]
[1741889448128,0.124229,80519.0,80518.0,0.00018633]
[1741889448332,0.223529,80519.0,80518.0,0.00018633]
[1741889448736,0.227529,80519.0,80518.0,0.00018633]
[1741889450633,0.228529,80519.0,80518.0,0.00018633]
[1741889453043,0.12931945,80519.0,80518.0,0.00018633]
[1741889453243,0.12931945,80519.0,80518.0,0.12441693]
[1741889453941,0.12931945,80519.0,80518.0,0.00018633]
[1741889454743,0.12931945,80519.0,80518.0,0.12441693]
[1741889455450,0.21541945,80519.0,80518.0,0.30591693]
[1741889456350,0.21541945,80519.0,80518.0,0.18168633]
[1741889456747,0.0621123,80522.0,80518.0,0.18168633]
[1741889456950,0.1863424,80521.0,80520.0,0.1242259]
[1741889457249,0.0621134,80521.0,80520.0,0.1242259]
[1741889457749,0.124229,80520.0,80519.0,0.1242284]
[1741889458348,0.0621134,80521.0,80518.0,0.06230153]
[1741889458349,0.0651134,80521.0,80518.0,0.00018633]
[1741889458553,0.124229,80519.0,80518.0,0.00018633]
[1741889460542,0.210229,80519.0,80518.0,0.00018633]
[1741889461044,0.212229,80519.0,80518.0,0.00018633]
[1741889461352,0.214229,80519.0,80518.0,0.00018633]
[1741889461756,0.1242429,80510.0,80509.0,0.01373934]
[1741889461938,0.1242429,80510.0,80509.0,0.13798374]
[1741889462246,0.2393206,80512.0,80503.0,0.0621262]
[1741889462551,0.1242556,80504.0,80503.0,0.1242521]
[1741889462749,0.1242583,80500.0,80499.0,0.00186333]
[1741889464243,0.0621261,80504.0,80502.0,0.1242552]
[1741889464455,0.1242514,80508.0,80507.0,0.1242444]
[1741889464647,0.001,80510.0,80507.0,0.1242444]
[1741889464853,0.001,80510.0,80509.0,0.1242444]
[1741889465147,0.00018633,80512.0,80511.0,0.1242414]
[1741889465550,0.12442613,80512.0,80511.0,0.15001697]
[1741889465753,0.00018633,80512.0,80511.0,0.15001697]
[1741889466147,0.1552733,80518.0,80517.0,0.1242321]
[1741889466342,0.1552733,80518.0,80517.0,0.15000767]
[1741889466546,0.1863488,80518.0,80517.0,0.13814406]
[1741889467245,0.00186393,80519.0,80518.0,0.1242306]
[1741889467443,0.08691,80534.0,80522.0,0.0621119]
[1741889467642,0.08691,80534.0,80533.0,0.1242074]
[1741889467953,0.04966,80544.0,80543.0,0.124192]
[1741889468155,0.2441764,80569.0,80545.0,0.062094]
[1741889468347,0.0620823,80561.0,80547.0,0.0620924]
[1741889468542,0.0620823,80561.0,80547.0,0.1020924]
[1741889468749,0.1241832,80551.0,80550.0,0.1241779]
[1741889469061,0.1241827,80549.0,80548.0,0.01391196]
[1741889469243,0.0620884,80554.0,80553.0,0.1241735]
[1741889469849,0.03103,80557.0,80549.0,0.06209]
[1741889470052,0.1241812,80550.0,80546.0,0.00018621]
[1741889470241,0.1241858,80547.0,80546.0,0.04018621]
[1741889470446,0.14033647,80547.0,80546.0,0.04018621]
[1741889470650,0.14033647,80547.0,80546.0,0.00018621]
[1741889470852,0.14033647,80547.0,80546.0,0.01374827]
[1741889471042,0.3029858,80547.0,80546.0,0.01374827]
[1741889471245,0.1788,80547.0,80532.0,0.0621039]
[1741889471446,0.1242105,80531.0,80530.0,0.1242118]
[1741889471650,0.19997902,80540.0,80523.0,0.00952083]
[1741889471846,0.1863063,80537.0,80536.0,0.0621013]
[1741889472041,0.1863063,80537.0,80536.0,0.01380838]
[1741889472965,0.1873063,80537.0,80536.0,0.01380838]
[1741889473451,0.1873063,80537.0,80536.0,0.13801118]
[1741889473651,0.1893063,80537.0,80536.0,0.10350838]
[1741889474343,0.003,80537.0,80536.0,0.22771118]
[1741889474952,0.00018621,80541.0,80536.0,0.17350838]
[1741889475156,0.2356862,80556.0,80547.0,0.0620906]
[1741889475352,0.2356862,80556.0,80537.0,0.1241966]
[1741889475557,0.2356862,80556.0,80543.0,0.1241842]
[1741889475558,0.1241973,80544.0,80543.0,0.1241842]
[1741889475859,0.1736,80556.0,80538.0,0.01380838]
[1741889476058,0.1552004,80557.0,80556.0,0.124172]
[1741889476460,0.1241704,80557.0,80556.0,0.01380838]
[1741889476960,0.1241704,80557.0,80556.0,0.13798038]
[1741889477143,0.2105704,80557.0,80556.0,0.22368038]
[1741889477657,0.2105704,80557.0,80556.0,0.01380838]
[1741889478458,0.3004704,80557.0,80556.0,0.01380838]
[1741889478657,0.3024704,80557.0,80556.0,0.01380838]
[1741889478949,0.1241797,80551.0,80550.0,0.22075734]
[1741889479649,0.1241797,80551.0,80550.0,0.23453512]
[1741889481356,0.1241797,80551.0,80537.0,0.22075734]
[1741889481357,0.1241966,80540.0,80537.0,0.22075734]
[1741889482147,0.3118966,80540.0,80537.0,0.22075734]
[1741889482953,0.3118966,80540.0,80539.0,0.12438441]
[1741889483358,0.1241913,80544.0,80543.0,0.1241905]
[1741889483563,0.1241913,80544.0,80543.0,0.2145905]
[1741889483860,0.03103,80553.0,80547.0,0.1241858]
[1741889484066,0.1552069,80553.0,80552.0,0.1241781]
[1741889484765,0.1241812,80551.0,80550.0,0.1241802]
[1741889485153,0.062094,80546.0,80539.0,0.00018621]
[1741889485458,0.1241892,80546.0,80545.0,0.1241843]
[1741889486053,0.0620921,80549.0,80545.0,0.1241843]
[1741889486267,0.0620921,80549.0,80548.0,0.1241843]
[1741889487164,0.03203,80553.0,80552.0,0.1241781]
[1741889487165,0.03103,80553.0,80552.0,0.1241781]
[1741889487460,0.1241614,80566.0,80565.0,0.1862321]
[1741889487761,0.1241535,80569.0,80568.0,0.1241535]
[1741889487966,0.1241535,80569.0,80553.0,0.15848]
[1741889487967,0.0620729,80573.0,80571.0,0.1241473]
[1741889488164,0.5676531,80599.0,80571.0,0.25]
[1741889488472,0.2733,80599.0,80588.0,0.1241211]
[1741889488664,0.1241195,80591.0,80589.0,0.1241211]
[1741889488858,0.01632102,80596.0,80589.0,0.1241211]
[1741889489052,0.1341196,80590.0,80589.0,0.1241211]
[1741889489359,0.01,80590.0,80589.0,0.1241211]
[1741889489566,0.01,80590.0,80589.0,0.14013124]
[1741889489767,0.01,80590.0,80589.0,0.15196311]
[1741889490061,0.01,80590.0,80589.0,0.19196311]
[1741889490670,0.01,80590.0,80589.0,0.18013124]
[1741889491259,0.011,80590.0,80589.0,0.18013124]
[1741889492561,0.1351196,80590.0,80589.0,0.04]
[1741889492763,0.011,80590.0,80589.0,0.1641211]
[1741889493365,0.1351196,80590.0,80589.0,0.04]
[1741889493563,0.2240196,80590.0,80589.0,0.04]
[1741889494666,0.1241319,80582.0,80581.0,0.00018621]
[1741889495270,0.3053313,80584.0,80583.0,0.1241304]
[1741889495462,0.1812,80584.0,80583.0,0.1241304]
[1741889495664,0.1241272,80586.0,80585.0,0.1241254]
[1741889495858,0.16936,80590.0,80589.0,0.1241211]
[1741889496069,0.01,80590.0,80589.0,0.1241211]
[1741889496758,0.01,80590.0,80589.0,0.3080211]
[1741889497070,0.01,80590.0,80589.0,0.1839]
[1741889497373,0.01,80590.0,80589.0,0.3080211]
[1741889498278,0.01,80590.0,80589.0,0.3780211]
[1741889498465,0.0859,80612.0,80599.0,0.1241057]
[1741889498772,0.2241042,80600.0,80599.0,0.1241057]
[1741889499166,0.1,80600.0,80599.0,0.13999627]
[1741889499367,0.1,80600.0,80599.0,0.32389627]
[1741889500473,0.2241042,80600.0,80599.0,0.1839]
[1741889500777,0.2241042,80600.0,80588.0,0.1241198]
[1741889500778,0.1241211,80589.0,80588.0,0.1241198]
[1741889501074,0.0620585,80592.0,80586.0,0.0620628]
[1741889501075,0.186179,80592.0,80591.0,0.124118]
[1741889501762,0.18008083,80592.0,80591.0,0.124118]
[1741889502173,0.18008083,80592.0,80591.0,0.306418]
[1741889502577,0.18108083,80592.0,80591.0,0.306418]
[1741889503674,0.05696033,80592.0,80591.0,0.306418]
[1741889504475,0.3126165,80592.0,80591.0,0.306418]
[1741889504972,0.001,80592.0,80591.0,0.306418]
[1741889505568,0.1,80600.0,80599.0,0.1241057]
[1741889506372,0.1,80600.0,80599.0,0.3541057]
[1741889506577,0.2150827,80614.0,80613.0,0.1240842]
[1741889507477,0.1240827,80614.0,80613.0,0.3029842]
[1741889507675,0.3046827,80614.0,80613.0,0.3029842]
[1741889508276,0.00186184,80616.0,80615.0,0.1240811]
[1741889508478,0.12594134,80616.0,80615.0,0.1240811]
[1741889509174,0.00186184,80616.0,80615.0,0.1240811]
[1741889509681,0.12594134,80616.0,80615.0,0.1240811]
[1741889509889,0.12594134,80616.0,80613.0,0.1789]
[1741889509890,0.1240826,80614.0,80613.0,0.1789]
[1741889510478,0.1879,80614.0,80605.0,0.00018609]
[1741889510678,0.1240949,80606.0,80605.0,0.04018609]
[1741889510989,0.1240949,80606.0,80605.0,0.16428259]
[1741889511285,0.1240949,80606.0,80605.0,0.04018609]
[1741889511486,0.1240949,80606.0,80605.0,0.00018609]
[1741889511785,0.23453246,80606.0,80605.0,0.00018609]
[1741889511991,0.32133246,80606.0,80605.0,0.00018609]
[1741889512481,0.3059949,80606.0,80605.0,0.00018609]
[1741889513391,0.3059949,80606.0,80605.0,0.12428259]
[1741889513583,0.32164064,80606.0,80605.0,0.12428259]
[1741889513776,0.32164064,80606.0,80605.0,0.00018609]
[1741889515585,0.32164064,80606.0,80605.0,0.12428259]
[1741889515886,0.32164064,80606.0,80605.0,0.00018609]
[1741889516881,0.32164064,80606.0,80605.0,0.12428259]
[1741889517086,0.32164064,80606.0,80605.0,0.00018609]
[1741889519390,1.01130574,80606.0,80582.0,0.01518268]
[1741889519585,0.1241242,80587.0,80582.0,0.01518268]
[1741889519780,0.1241242,80587.0,80586.0,0.17066454]
[1741889519984,0.16502763,80587.0,80586.0,4e-08]
[1741889520489,0.50022763,80587.0,80586.0,4e-08]
[1741889520676,0.1241396,80577.0,80552.0,0.51674257]
[1741889520878,0.1241473,80572.0,80571.0,0.45466619]
[1741889521289,0.16513636,80572.0,80571.0,0.44275717]
[1741889521486,0.1231473,80572.0,80571.0,0.57881406]
[1741889521686,0.1231473,80572.0,80571.0,0.59283566]
[1741889521878,0.3714154,80576.0,80575.0,0.1241427]
[1741889522085,0.3714154,80576.0,80575.0,0.15007239]
[1741889522283,0.3714154,80576.0,80575.0,0.23787239]
[1741889522789,0.1862154,80576.0,80575.0,0.23787239]
[1741889522990,0.01607987,80580.0,80579.0,0.1241365]
[1741889522991,0.0001857,80580.0,80579.0,0.1241365]
[1741889523188,0.0001857,80580.0,80579.0,0.1381581]
[1741889523386,0.1243207,80580.0,80579.0,0.2259581]
[1741889523578,0.1243207,80580.0,80579.0,0.1018216]
[1741889523786,0.1243207,80580.0,80579.0,0.2259581]
[1741889524587,0.1243207,80580.0,80579.0,0.1018216]
[1741889524782,0.3126207,80580.0,80579.0,0.1018216]
[1741889524979,0.3126207,80580.0,80579.0,0.02603563]
[1741889525195,0.3126207,80580.0,80579.0,0.15017213]
[1741889525392,0.0001857,80580.0,80579.0,0.15017213]
[1741889525592,0.0001857,80580.0,80579.0,0.33377213]
[1741889525795,0.0001857,80580.0,80579.0,0.33477213]
[1741889525995,0.0001857,80580.0,80579.0,0.33277213]
[1741889526188,0.0021857,80580.0,80579.0,0.33277213]
[1741889526386,1e-07,80580.0,80579.0,0.60277213]
[1741889526601,0.1883,80605.0,80593.0,0.1241149]
[1741889526792,0.30675065,80603.0,80593.0,0.13612893]
[1741889527099,0.1241019,80602.0,80601.0,0.1241026]
[1741889527287,0.1241019,80602.0,80601.0,0.13611663]
[1741889527487,0.1241019,80602.0,80601.0,0.17298109]
[1741889527792,0.1241019,80602.0,80601.0,0.04887849]
[1741889527986,0.3010019,80602.0,80601.0,0.04887849]
[1741889528395,0.3010019,80602.0,80601.0,0.17298109]
[1741889528891,0.3010019,80602.0,80601.0,0.02703563]
[1741889529098,0.3020019,80602.0,80601.0,0.02703563]
[1741889529492,0.3020019,80602.0,80601.0,0.15113823]
[1741889529697,0.1251019,80602.0,80601.0,0.15113823]
[1741889529887,0.1241019,80602.0,80601.0,0.15113823]
[1741889530296,0.18551347,80603.0,80602.0,0.1241011]
[1741889530491,0.18551347,80603.0,80602.0,0.28611513]
[1741889530690,0.18551347,80603.0,80602.0,0.30013673]
[1741889530891,0.1861439,80607.0,80606.0,0.1240897]
[1741889531195,0.1861439,80607.0,80606.0,0.13610373]
[1741889531398,0.1861439,80607.0,80606.0,0.1500423]
[1741889531592,0.0620474,80607.0,80606.0,0.1500423]
[1741889531797,0.1504474,80607.0,80606.0,0.1500423]
[1741889531995,0.1504474,80607.0,80606.0,0.13802827]
[1741889532598,0.1504474,80607.0,80606.0,0.12400667]
[1741889533396,0.13978341,80610.0,80609.0,0.1240903]
[1741889533700,0.0919,80611.0,80610.0,0.1240888]
[1741889533891,0.2159872,80611.0,80610.0,0.1240888]
[1741889534603,0.2159872,80611.0,80610.0,0.13773142]
[1741889534896,0.1240737,80621.0,80620.0,0.1240718]
[1741889535096,0.14827084,80622.0,80621.0,0.1240718]
[1741889535799,0.14827084,80622.0,80621.0,0.13951814]
[1741889535997,0.14827084,80622.0,80621.0,0.1651275]
[1741889536391,0.15227084,80622.0,80621.0,0.1651275]
[1741889536592,0.27634114,80622.0,80621.0,0.1651275]
[1741889536796,0.15227084,80622.0,80621.0,0.1651275]
[1741889537297,0.15227084,80622.0,80621.0,0.3051275]
[1741889537491,0.10523313,80636.0,80630.0,0.124058]
[1741889537685,0.19443313,80636.0,80630.0,0.14966736]
[1741889537886,0.00186078,80655.0,80632.0,0.0620271]
[1741889538086,0.1240292,80649.0,80642.0,0.1240395]
[1741889538291,0.0154619,80648.0,80642.0,0.13602844]
[1741889538502,0.0896,80652.0,80642.0,0.13602844]
[1741889538693,0.0896,80652.0,80642.0,0.14964886]
[1741889538889,0.22133055,80650.0,80649.0,0.1240288]
[1741889539191,0.22133055,80650.0,80649.0,0.15592916]
[1741889539391,0.01526421,80658.0,80657.0,0.1240165]
[1741889539594,0.01526421,80658.0,80657.0,0.13600544]
[1741889539802,0.13927911,80658.0,80657.0,0.01198894]
[1741889539992,0.1240272,80650.0,80649.0,0.01380639]
[1741889540189,0.1240272,80650.0,80649.0,0.01278849]
[1741889540500,0.1240272,80650.0,80649.0,0.01278253]
[1741889540700,0.1240272,80650.0,80649.0,0.00018597]
[1741889541094,0.1240534,80633.0,80632.0,0.00186006]
[1741889541488,0.158,80646.0,80632.0,0.00186006]
[1741889541489,0.0496,80640.0,80632.0,0.06186006]
[1741889541691,0.0496,80640.0,80639.0,0.1240441]
[1741889541896,0.1736426,80640.0,80639.0,0.01270683]
[1741889542202,0.0496,80640.0,80639.0,0.13675093]
[1741889542404,0.0496,80640.0,80639.0,0.15692416]
[1741889542598,0.1736426,80640.0,80639.0,0.01270683]
[1741889542791,0.1736426,80640.0,80639.0,0.02708668]
[1741889543192,0.1736426,80640.0,80639.0,0.01437985]
[1741889543393,0.36628897,80640.0,80639.0,0.01437985]
[1741889543596,0.36628897,80640.0,80633.0,0.0875]
[1741889543903,0.1240534,80633.0,80632.0,0.00186006]
[1741889544305,0.1240549,80632.0,80626.0,0.0875]
[1741889544501,0.2126549,80632.0,80626.0,0.0875]
[1741889545610,0.1240549,80632.0,80631.0,0.13688434]
[1741889545793,0.1240549,80632.0,80631.0,0.01282784]
[1741889545994,0.1240549,80632.0,80631.0,0.0145239]
[1741889546404,0.2171549,80632.0,80631.0,0.0145239]
[1741889546610,0.2171549,80632.0,80631.0,0.00018597]
[1741889546798,0.124078,80617.0,80616.0,0.0901]
[1741889547104,0.124078,80617.0,80616.0,0.10260877]
[1741889547302,0.124078,80617.0,80612.0,0.0861]
[1741889547303,0.1240842,80613.0,80612.0,0.0861]
[1741889547499,0.1240842,80613.0,80609.0,0.0901]
[1741889547500,0.1240888,80610.0,80609.0,0.0901]
[1741889547698,0.1240934,80607.0,80596.0,0.09863707]
[1741889548010,0.1241242,80590.0,80586.0,0.02280529]
[1741889548197,0.1241057,80599.0,80598.0,0.00018609]
[1741889548504,0.1241196,80590.0,80589.0,0.0901]
[1741889548803,0.1241257,80586.0,80585.0,0.36854681]
[1741889549240,0.1181257,80586.0,80585.0,0.36854681]
[1741889549397,0.1181257,80586.0,80585.0,0.36790681]
[1741889550105,0.2720857,80586.0,80585.0,0.30283321]
[1741889550294,0.2720857,80586.0,80581.0,0.00018609]
[1741889550295,0.1241319,80582.0,80581.0,0.00018609]
[1741889550495,0.1241319,80582.0,80581.0,9e-08]